bitfinex/quotes_SOLUSD_20251226
["timestamp","ask_amount","ask_price","bid_price","bid_amount"]
[1766750766086,0.69,123.92,123.89,0.66]
[1766750766670,2.85401701,123.92,123.89,0.66]
[1766750767079,2.16401701,123.92,123.88,10.23612005]
[1766750767279,0.69,123.91,123.88,10.89612005]
[1766750768664,10.23325159,123.93,123.88,10.23612005]
[1766750768870,0.69,123.92,123.89,2.82401701]
[1766750769687,2.85401701,123.92,123.89,0.66]
[1766750770783,0.69,123.92,123.89,0.66]
[1766750770981,2.16401701,123.93,123.9,0.66]
[1766750771178,13.29168997,123.94,123.9,0.66]
[1766750772186,0.69,123.93,123.9,0.66]
[1766750776195,0.69,123.93,123.9,2.82401701]
[1766750776403,0.71,123.94,123.91,0.69]
[1766750776695,0.71,123.94,123.91,2.85401701]
[1766750777106,10.94116474,123.96,123.92,2.85401701]
[1766750777286,10.23116474,123.96,123.92,2.85401701]
[1766750777482,0.71,123.95,123.92,2.85401701]
[1766750777803,0.71,123.95,123.92,0.69]
[1766750779798,10.23116474,123.96,123.92,8.0696733]
[1766750779980,10.94116474,123.96,123.93,0.69]
[1766750780799,0.71,123.96,123.93,0.69]
[1766750781788,2.87401701,123.96,123.93,0.69]
[1766750782602,2.87401701,123.96,123.93,10.92302729]
[1766750782603,0.71,123.96,123.93,10.92302729]
[1766750782783,2.87401701,123.97,123.94,0.69]
[1766750783292,0.71,123.96,123.93,10.92302729]
[1766750786402,0.71,123.96,123.93,8.75901028]
[1766750788808,39.88143067,123.98,123.94,0.69]
[1766750789003,21.37772384,123.98,123.94,0.69]
[1766750789499,2.16401701,123.97,123.94,0.69]
[1766750789888,0.71,123.96,123.93,10.92302729]
[1766750790089,0.71,123.96,123.93,0.69]
[1766750790288,2.87401701,123.96,123.93,0.69]
[1766750790913,0.71,123.95,123.92,61.5]
[1766750791082,2.16401701,123.93,123.89,23.50147422]
[1766750791389,2.16401701,123.91,123.87,0.69]
[1766750792106,2.16401701,123.9,123.86,34.51470827]
[1766750792290,2.16401701,123.89,123.86,35.20470827]
[1766750792688,2.16401701,123.9,123.86,43.27815566]
[1766750792907,2.16401701,123.9,123.86,45.44217267]
[1766750793507,2.87401701,123.9,123.86,45.44217267]
[1766750793721,0.71,123.9,123.87,10.92694237]
[1766750797327,0.71,123.9,123.88,2.16401701]
[1766750799439,0.71,123.91,123.88,2.85401701]
[1766750799732,0.71,123.91,123.88,10.92631339]
[1766750805548,24.22187235,123.93,123.9,2.85401701]
[1766750805842,0.66,123.94,123.91,2.16401701]
[1766750807451,0.66,123.94,123.9,2.16401701]
[1766750807646,0.66,123.94,123.89,8.76111095]
[1766750807851,0.66,123.94,123.9,2.16401701]
[1766750810246,0.66,123.94,123.9,10.92482754]
[1766750811251,0.66,123.91,123.88,2.85401701]
[1766750812043,0.66,123.91,123.88,10.92597473]
[1766750812235,2.82401701,123.91,123.88,8.76195772]
[1766750813155,2.16401701,123.91,123.89,0.69]
[1766750814052,2.16401701,123.91,123.89,8.76118216]
[1766750814257,2.82401701,123.92,123.89,8.76118216]
[1766750818040,4.04019608,123.92,123.89,8.76118216]
[1766750820162,3.38019608,123.92,123.9,8.7609503]
[1766750820359,3.38019608,123.93,123.91,0.69]
[1766750820860,3.38019608,123.93,123.9,8.0709503]
[1766750821166,4.04019608,123.93,123.9,8.7609503]
[1766750821742,0.66,123.93,123.9,8.7609503]
[1766750822253,4.04019608,123.93,123.9,8.7609503]
[1766750822452,3.38019608,123.94,123.9,0.69]
[1766750822966,4.04019608,123.94,123.9,0.69]
[1766750824265,3.38019608,123.95,123.9,0.69]
[1766750824460,3.38019608,123.95,123.92,0.69]
[1766750824768,0.66,123.95,123.92,0.69]
[1766750825066,4.04019608,123.95,123.92,0.69]
[1766750826665,4.04019608,123.95,123.93,8.06907124]
[1766750828069,3.38019608,123.94,123.91,14.74]
[1766750828268,4.04019608,123.94,123.91,15.43]
[1766750828647,4.04019608,123.94,123.91,23.50009623]
[1766750828967,3.38019608,123.92,123.91,14.74]
[1766750829175,3.38019608,123.92,123.9,8.76099854]
[1766750829377,4.04019608,123.92,123.9,8.07099854]
[1766750829870,3.38019608,123.95,123.91,0.7]
[1766750830072,3.38019608,123.95,123.92,8.06963142]
[1766750830370,3.38019608,123.95,123.92,8.76963142]
[1766750831867,4.04019608,123.95,123.92,8.76963142]
[1766750839474,3.38019608,123.94,123.92,8.76963142]
[1766750839675,0.66,123.92,123.89,96.41859549]
[1766750839972,0.66,123.92,123.9,0.72]
[1766750839973,3.38019608,123.92,123.9,0.72]
[1766750840352,3.38019608,123.92,123.9,8.79065811]
[1766750840977,4.04019608,123.92,123.9,8.79065811]
[1766750841194,0.66,123.93,123.89,8.79142908]
[1766750841486,8.06850049,123.94,123.88,8.79204477]
[1766750841487,4.04019608,123.91,123.88,8.79204477]
[1766750842670,4.04019608,123.9,123.87,23.53290263]
[1766750842865,4.04019608,123.9,123.87,8.79290263]
[1766750854880,0.66,123.89,123.86,44.69313188]
[1766750855379,0.66,123.89,123.87,0.72]
[1766750858696,0.66,123.89,123.87,8.79294953]
[1766750858900,4.04019608,123.9,123.87,8.79294953]
[1766750859279,4.04019608,123.91,123.88,0.72]
[1766750859794,3.38019608,123.91,123.88,0.72]
[1766750859996,0.66,123.9,123.88,0.72]
[1766750861496,0.66,123.9,123.88,8.79226961]
[1766750861998,0.66,123.9,123.88,8.07226961]
[1766750862693,4.04019608,123.9,123.88,8.07226961]
[1766750864783,0.66,123.9,123.88,8.07226961]
[1766750865193,3.38019608,123.91,123.89,0.66]
[1766750866197,0.66,123.9,123.87,8.73297973]
[1766750868597,0.66,123.9,123.87,8.07297973]
[1766750868796,0.66,123.9,123.88,0.66]
[1766750869100,4.04019608,123.91,123.88,8.73228861]
[1766750871379,3.38019608,123.91,123.88,8.73228861]
[1766750871580,0.66,123.9,123.88,8.73228861]
[1766750874805,0.66,123.93,123.89,0.66]
[1766750875289,4.04019608,123.93,123.89,0.66]
[1766750875890,0.66,123.92,123.89,0.66]
[1766750876399,0.66,123.92,123.89,8.73130256]
[1766750879507,0.66,123.92,123.9,0.66]
[1766750880004,2.16300456,123.93,123.9,8.73057968]
[1766750880203,2.82300456,123.93,123.9,8.73057968]
[1766750880591,0.66,123.93,123.9,8.73057968]
[1766750881008,2.82300456,123.93,123.9,8.73057968]
[1766750881180,2.16300456,123.93,123.9,8.73057968]
[1766750881386,0.66,123.92,123.9,0.66]
[1766750883592,2.82300456,123.92,123.9,0.66]
[1766750887212,0.66,123.92,123.9,0.66]
[1766750890010,0.66,123.92,123.89,8.07140875]
[1766750890212,2.82300456,123.92,123.89,8.73140875]
[1766750890613,2.16300456,123.91,123.88,22.81218054]
[1766750890810,2.82300456,123.9,123.87,15.4]
[1766750892297,2.82300456,123.9,123.87,23.47283328]
[1766750896724,0.66,123.9,123.87,23.47283328]
[1766750896909,2.82300456,123.9,123.87,23.47283328]
[1766750897634,0.66,123.9,123.87,23.47283328]
[1766750900210,0.66,123.9,123.88,0.71]
[1766750902025,0.66,123.9,123.87,22.81283328]
[1766750902218,0.66,123.9,123.87,23.52283328]
[1766750907531,0.66,123.9,123.87,8.07283328]
[1766750907732,0.67,123.89,123.87,8.07283328]
[1766750910607,0.67,123.89,123.87,8.78283328]
[1766750913911,2.83300456,123.9,123.87,8.78283328]
[1766750914323,0.67,123.89,123.87,8.78283328]
[1766750916540,2.83300456,123.9,123.87,8.78283328]
[1766750917551,2.83300456,123.89,123.86,44.68290928]
[1766750917724,0.67,123.89,123.87,8.07291282]
[1766750917924,0.67,123.89,123.87,8.78291282]
[1766750919214,2.16300456,123.91,123.87,8.78291282]
[1766750919830,8.06977381,123.95,123.88,11.14767296]
[1766750920021,22.80722217,123.96,123.9,0.71]
[1766750920223,2.16300456,123.95,123.9,0.71]
[1766750920632,8.06660755,123.97,123.9,0.71]
[1766750920824,8.06660755,123.97,123.92,0.71]
[1766750920825,2.16300456,123.95,123.92,0.71]
[1766750921218,2.83300456,123.95,123.92,8.77934107]
[1766750921523,0.67,123.95,123.92,8.77934107]
[1766750927138,2.85300456,123.96,123.93,0.67]
[1766750931137,2.85300456,123.95,123.92,8.73934107]
[1766750931344,0.69,123.94,123.92,8.06934107]
[1766750931843,2.16300456,123.94,123.91,8.74036114]
[1766750932035,0.69,123.93,123.91,8.07036114]
[1766750933946,0.69,123.93,123.91,8.74036114]
[1766750934844,8.0667082,123.97,123.91,8.07036114]
[1766750935049,2.16300456,123.95,123.92,0.67]
[1766750935249,2.16300456,123.96,123.92,0.67]
[1766750935948,2.16300456,123.96,123.93,0.67]
[1766750937341,2.35300456,123.96,123.93,0.67]
[1766750937754,0.19,123.96,123.93,0.67]
[1766750937946,2.35300456,123.96,123.93,0.67]
[1766750939954,3.56774978,123.96,123.93,0.67]
[1766750940434,0.19,123.96,123.93,0.67]
[1766750944044,3.56774978,123.96,123.93,0.67]
[1766750944234,11.63445798,123.97,123.93,0.67]
[1766750944661,3.56774978,123.97,123.94,0.67]
[1766750945836,3.37774978,123.97,123.94,0.67]
[1766750946038,3.56774978,123.97,123.94,0.67]
[1766750946240,3.37774978,123.95,123.92,8.73912686]
[1766750946444,3.56774978,123.95,123.92,8.73912686]
[1766750946851,3.37774978,123.95,123.93,0.67]
[1766750949861,0.19,123.96,123.93,0.67]
[1766750950269,3.56774978,123.96,123.93,0.67]
[1766750955265,8.25700701,123.97,123.94,0.69]
[1766750955561,3.37774978,123.96,123.94,0.69]
[1766750955982,3.56774978,123.96,123.92,8.06943315]
[1766750956266,3.56774978,123.96,123.93,0.69]
[1766750964952,3.37774978,123.96,123.94,0.69]
[1766750967055,0.19,123.94,123.91,23.50026169]
[1766750967256,0.19,123.94,123.91,8.76026169]
[1766750967687,3.37774978,123.92,123.89,14.74]
[1766750967979,3.56774978,123.91,123.88,8.07193441]
[1766750968154,3.37774978,123.91,123.89,0.69]
[1766750968984,3.56774978,123.92,123.89,0.69]
[1766750971277,0.19,123.92,123.89,0.69]
[1766750971582,3.37774978,123.92,123.89,0.69]
[1766750972573,11.63699191,123.93,123.89,0.69]
[1766750973571,3.56774978,123.92,123.89,0.69]
[1766750977570,3.37774978,123.91,123.89,0.69]
[1766750982984,3.37774978,123.91,123.88,8.07193441]
[1766750983284,3.37774978,123.89,123.86,72.65767296]
[1766750983485,3.56774978,123.89,123.86,0.72]
[1766750983686,3.37774978,123.88,123.86,0.72]
[1766750988082,3.56774978,123.88,123.84,8.79470006]
[1766750988281,3.56774978,123.88,123.85,0.72]
[1766750988994,3.56774978,123.88,123.85,8.7942408]
[1766750993196,3.37774978,123.88,123.84,8.0749354]
[1766750993388,3.37774978,123.88,123.85,0.72]
[1766750994097,3.56774978,123.88,123.85,0.72]
[1766750996602,11.64014071,123.88,123.85,0.72]
[1766750996794,3.56774978,123.88,123.85,0.72]
[1766750998699,3.37774978,123.88,123.85,0.72]
[1766751000102,3.56774978,123.88,123.85,0.72]
[1766751000299,3.37774978,123.87,123.85,0.72]
[1766751001590,8.26240993,123.88,123.85,0.72]
[1766751001804,3.37774978,123.87,123.85,0.72]
[1766751001991,2.16505314,123.87,123.85,0.72]
[1766751004709,2.35505314,123.88,123.85,0.72]
[1766751008805,10.42698766,123.89,123.85,0.72]
[1766751010104,10.42620708,123.9,123.86,0.72]
[1766751010413,12.7927261,123.91,123.86,0.72]
[1766751011295,2.35505314,123.91,123.87,0.72]
[1766751011608,2.16505314,123.92,123.87,0.72]
[1766751011789,2.16505314,123.92,123.88,0.72]
[1766751012391,10.2349357,123.92,123.88,8.79221495]
[1766751012606,10.2349357,123.92,123.89,0.72]
[1766751014009,16.33086902,123.94,123.89,0.72]
[1766751014209,2.16505314,123.94,123.9,0.7]
[1766751014614,2.16505314,123.94,123.91,0.7]
[1766751020118,2.35505314,123.94,123.91,0.7]
[1766751024229,0.19,123.94,123.91,0.7]
[1766751024415,2.35505314,123.94,123.91,0.7]
[1766751026425,0.19,123.94,123.91,0.7]
[1766751026628,2.35505314,123.94,123.91,0.7]
[1766751031413,2.16505314,123.94,123.91,0.7]
[1766751031837,8.25804899,123.95,123.91,0.7]
[1766751032223,2.16505314,123.95,123.92,0.7]
[1766751032529,8.06755675,123.96,123.92,0.7]
[1766751032736,2.16505314,123.95,123.92,0.7]
[1766751033921,2.16505314,123.94,123.92,0.7]
[1766751034530,2.35505314,123.95,123.92,0.7]
[1766751035815,2.16505314,123.94,123.92,0.7]
[1766751036038,2.16505314,123.93,123.91,8.77012255]
[1766751036238,2.16505314,123.92,123.91,8.77012255]
[1766751036624,2.16505314,123.93,123.91,8.77012255]
[1766751040621,2.16505314,123.93,123.91,8.07012255]
[1766751040939,0.19,123.94,123.91,0.7]
[1766751040940,2.16505314,123.92,123.91,0.7]
[1766751042047,2.16505314,123.93,123.91,0.7]
[1766751044320,2.16505314,123.92,123.91,0.7]
[1766751044945,2.16505314,123.93,123.91,0.7]
[1766751050846,2.35505314,123.94,123.91,0.7]
[1766751054451,2.16505314,123.94,123.91,0.7]
[1766751056353,2.16505314,123.94,123.92,0.71]
[1766751057555,2.16505314,123.95,123.93,0.71]
[1766751057935,2.35505314,123.95,123.92,8.77958628]
[1766751058439,2.35505314,123.94,123.91,0.71]
[1766751059146,2.16505314,123.94,123.91,0.71]
[1766751059841,2.35505314,123.94,123.91,0.71]
[1766751060355,0.19,123.94,123.91,0.71]
[1766751067357,0.19,123.94,123.91,8.78035334]
[1766751077670,0.19,123.94,123.91,0.71]
[1766751078660,3.56874824,123.94,123.91,0.71]
[1766751079043,0.19,123.94,123.91,0.71]
[1766751080980,26.18613559,123.96,123.92,0.72]
[1766751081273,0.19,123.97,123.93,0.72]
[1766751081448,5.63645084,123.97,123.94,0.72]
[1766751081651,9.01519908,123.97,123.94,0.72]
[1766751081857,5.44645084,123.96,123.94,0.72]
[1766751082884,5.63645084,123.96,123.94,0.72]
[1766751085066,0.19,123.97,123.94,0.72]
[1766751085272,5.63320271,123.97,123.94,0.72]
[1766751086644,9.01195095,123.97,123.94,0.72]
[1766751086857,3.56874824,123.97,123.94,0.72]
[1766751089482,0.19,123.97,123.94,0.72]
[1766751090566,3.56874824,123.97,123.94,0.72]
[1766751090864,11.6352503,123.97,123.94,0.72]
[1766751091060,3.56874824,123.97,123.94,0.72]
[1766751091765,0.19,123.95,123.92,62.22]
[1766751092772,3.56874824,123.96,123.93,0.72]
[1766751093376,0.19,123.95,123.92,0.72]
[1766751098887,0.19,123.95,123.91,73.66894837]
[1766751099078,0.19,123.95,123.92,0.72]
[1766751099258,11.63611347,123.96,123.92,0.72]
[1766751104983,11.63611347,123.96,123.92,8.78966271]
[1766751105487,11.63611347,123.96,123.93,0.69]
[1766751113581,8.25736523,123.96,123.93,0.69]
[1766751113782,11.63611347,123.96,123.93,0.69]
[1766751114797,0.19,123.96,123.93,0.69]
[1766751115097,9.01057619,123.96,123.93,0.69]
[1766751115275,3.56874824,123.96,123.93,0.69]
[1766751118899,0.19,123.96,123.93,0.69]
[1766751119102,9.01115619,123.96,123.93,0.69]
[1766751119293,3.56874824,123.96,123.93,0.69]
[1766751119699,0.19,123.96,123.93,0.69]
[1766751119879,5.63257502,123.96,123.93,0.69]
[1766751121196,5.44257502,123.96,123.94,0.69]
[1766751121399,0.19,123.97,123.94,0.69]
[1766751121603,9.01160333,123.97,123.94,0.69]
[1766751121780,5.44285509,123.96,123.94,0.69]
[1766751121981,5.63285509,123.96,123.94,0.69]
[1766751123001,0.19,123.96,123.94,0.69]
[1766751123177,5.44306203,123.97,123.94,0.69]
[1766751123382,5.44306203,123.97,123.95,0.69]
[1766751124481,27.52895467,123.98,123.95,0.69]
[1766751124681,5.44283073,123.97,123.95,0.69]
[1766751127206,7.60411244,123.97,123.95,0.69]
[1766751127503,2.16128171,123.97,123.95,0.69]
[1766751127800,25.36767296,123.98,123.95,0.69]
[1766751127997,5.44240249,123.97,123.95,0.69]
[1766751128500,0.19,123.95,123.91,0.69]
[1766751128799,2.16128171,123.94,123.91,0.69]
[1766751131386,20.37240249,123.95,123.91,0.69]
[1766751131596,17.09128171,123.95,123.91,0.69]
[1766751132681,2.35128171,123.95,123.91,0.69]
[1766751134702,10.41914015,123.95,123.91,0.69]
[1766751135088,34.63514693,123.95,123.91,0.69]
[1766751136205,2.35128171,123.93,123.9,0.68]
[1766751136404,0.19,123.93,123.9,0.68]
[1766751136611,2.35128171,123.93,123.9,0.68]
[1766751136813,2.16128171,123.93,123.9,0.68]
[1766751137395,24.40796165,123.94,123.9,0.68]
[1766751137594,2.16128171,123.93,123.9,0.68]
[1766751137802,26.56924336,123.94,123.9,0.68]
[1766751138088,32.47648566,123.94,123.9,0.68]
[1766751138488,34.63776737,123.94,123.9,0.68]
[1766751144416,2.16128171,123.93,123.9,0.68]
[1766751144717,32.47648566,123.94,123.9,0.68]
[1766751145018,2.16128171,123.93,123.9,0.68]
[1766751148724,0.67,123.97,123.92,2.16128171]
[1766751148926,0.67,123.97,123.93,2.16128171]
[1766751149223,0.67,123.97,123.91,16.90128171]
[1766751149224,0.67,123.96,123.91,16.90128171]
[1766751149610,0.67,123.95,123.91,16.90128171]
[1766751149811,0.67,123.95,123.91,78.40128171]
[1766751150814,0.67,123.95,123.91,86.4710145]
[1766751151423,0.67,123.95,123.91,84.30973279]
[1766751152131,2.83128171,123.95,123.91,84.30973279]
[1766751152333,8.06677425,123.98,123.91,22.80973279]
[1766751152506,0.77,124.01,123.96,2.16128171]
[1766751152824,0.77,124.01,123.96,10.2277544]
[1766751153027,0.67,124.0,123.96,10.2277544]
[1766751153228,0.67,124.0,123.96,8.06647269]
[1766751153717,2.83128171,124.0,123.96,8.06647269]
[1766751153921,0.67,123.99,123.95,22.8075912]
[1766751154116,0.67,123.99,123.95,24.96887291]
[1766751154324,0.67,124.0,123.96,10.22833518]
[1766751154526,2.83128171,124.0,123.96,8.06705347]
[1766751154732,0.67,123.99,123.96,8.06705347]
[1766751155929,0.67,123.99,123.95,22.80772065]
[1766751159134,2.16128171,123.98,123.92,100.2753135]
[1766751159339,0.67,123.97,123.93,22.78863983]
[1766751159850,2.83128171,123.97,123.93,22.78863983]
[1766751160146,0.67,123.97,123.94,8.06836151]
[1766751161543,0.67,123.97,123.93,22.78894176]
[1766751161544,2.16128171,123.97,123.93,22.78894176]
[1766751161722,0.67,123.95,123.91,2.16128171]
[1766751163243,0.67,123.95,123.92,8.06961892]
[1766751164449,0.67,123.95,123.91,8.07037365]
[1766751164619,0.67,123.95,123.91,10.23165536]
[1766751165921,0.7,123.98,123.94,2.16128171]
[1766751166247,0.7,123.98,123.91,28.24630779]
[1766751166248,0.7,123.98,123.95,2.16128171]
[1766751166848,0.7,123.98,123.94,10.22917411]
[1766751167347,0.7,123.97,123.94,8.0678924]
[1766751186862,0.7,123.97,123.93,84.28884689]
[1766751187264,11.44278623,123.98,123.93,84.28884689]
[1766751187475,8.06585705,123.98,123.93,84.28884689]
[1766751187774,11.44278623,123.98,123.93,84.28884689]
[1766751189045,3.37692918,123.97,123.93,84.28884689]
[1766751189871,3.37692918,123.97,123.93,22.78884689]
[1766751191172,0.7,123.96,123.93,22.78884689]
[1766751191990,0.7,123.96,123.93,14.72]
[1766751192556,0.7,123.95,123.93,14.72]
[1766751193986,0.7,123.95,123.92,8.06951172]
[1766751196089,0.67,123.94,123.91,22.79011507]
[1766751200102,0.67,123.94,123.91,26.16704425]
[1766751200399,0.67,123.95,123.91,26.16704425]
[1766751201597,0.67,123.95,123.91,87.66704425]
[1766751208902,0.67,123.95,123.91,84.29011507]
[1766751209505,0.67,123.95,123.91,87.66704425]
[1766751223216,3.37692918,123.96,123.91,87.66704425]
[1766751231319,11.44369163,123.97,123.91,107.84297839]
[1766751233418,11.44369163,123.97,123.92,11.44608765]
[1766751235727,11.44369163,123.97,123.92,8.06915847]
[1766751235919,11.44369163,123.97,123.92,11.44608765]
[1766751236622,8.06676245,123.97,123.92,11.44608765]
[1766751236814,11.44369163,123.97,123.92,11.44608765]
[1766751238331,3.37692918,123.96,123.92,8.06915847]
[1766751239532,8.06676245,123.97,123.92,8.06915847]
[1766751239732,3.37692918,123.96,123.92,8.06915847]
[1766751240427,11.44369163,123.97,123.92,8.06915847]
[1766751240935,8.06676245,123.97,123.92,11.44608765]
[1766751241128,0.69,123.96,123.92,11.44608765]
[1766751245731,0.69,123.96,123.92,8.06915847]
[1766751245938,0.69,123.96,123.92,10.23071231]
[1766751248948,0.69,123.96,123.92,8.06915847]
[1766751249142,0.69,123.96,123.92,10.23071231]
[1766751258755,0.69,123.96,123.93,2.16155384]
[1766751259660,0.69,123.96,123.93,10.23027918]
[1766751261264,0.69,123.97,123.94,2.16155384]
[1766751262459,0.69,123.97,123.94,10.22967635]
[1766751262644,0.69,123.97,123.95,2.16155384]
[1766751262842,0.69,123.97,123.94,10.22967635]
[1766751263047,0.69,123.97,123.94,8.06812251]
[1766751263253,0.69,123.97,123.94,10.22967635]
[1766751264738,0.69,123.97,123.94,8.06812251]
[1766751266058,0.69,123.97,123.94,10.22967635]
[1766751270748,0.69,123.97,123.94,8.06812251]
[1766751270948,0.69,123.97,123.94,10.22967635]
[1766751280491,0.69,123.97,123.94,8.06812251]
[1766751283267,8.06585359,123.98,123.94,8.06812251]
[1766751288893,10.22672038,123.99,123.94,8.06812251]
[1766751289093,5.44302089,123.98,123.94,8.06812251]
[1766751290120,7.60457473,123.98,123.94,8.06812251]
[1766751290307,2.16155384,123.98,123.94,8.06812251]
[1766751290507,8.06516654,123.99,123.94,8.06812251]
[1766751290712,7.60469529,123.98,123.94,8.06812251]
[1766751290908,2.16155384,123.98,123.94,8.06812251]
[1766751298706,8.06516654,123.99,123.94,8.06812251]
[1766751298930,7.60589623,123.98,123.94,8.06812251]
[1766751299123,2.16155384,123.98,123.94,8.06812251]
[1766751301236,0.66,123.97,123.94,8.06812251]
[1766751302041,0.66,123.95,123.91,22.79010257]
[1766751302202,0.66,123.92,123.88,61.5]
[1766751302407,2.16155384,123.9,123.84,61.5]
[1766751302610,28.2394707,123.94,123.82,2.16155384]
[1766751302611,2.82155384,123.88,123.82,2.16155384]
[1766751302827,2.82155384,123.88,123.83,14.72]
[1766751303004,0.66,123.88,123.85,0.66]
[1766751303650,0.66,123.9,123.86,0.66]
[1766751303939,0.66,123.91,123.87,0.66]
[1766751305617,0.66,123.91,123.87,8.73297812]
[1766751305822,0.66,123.9,123.87,8.73297812]
[1766751310541,3.3808079,123.9,123.86,23.45343094]
[1766751310744,0.66,123.89,123.86,23.45343094]
[1766751310957,0.66,123.89,123.87,0.66]
[1766751311338,0.66,123.89,123.86,8.73343094]
[1766751320467,0.72,123.9,123.88,0.72]
[1766751320864,0.72,123.91,123.88,0.72]
[1766751323766,12.16996772,123.93,123.89,0.72]
[1766751323966,8.78915982,123.93,123.89,0.72]
[1766751324372,12.16996772,123.93,123.89,0.72]
[1766751324666,11.44996772,123.93,123.89,0.72]
[1766751324867,0.72,123.92,123.89,0.72]
[1766751325163,0.72,123.91,123.89,0.72]
[1766751333281,3.3808079,123.92,123.88,22.81199121]
[1766751333901,11.45073394,123.92,123.87,8.07273921]
[1766751334199,3.3808079,123.91,123.87,8.07273921]
[1766751335781,3.3808079,123.89,123.86,69.5734588]
[1766751339316,3.3808079,123.89,123.86,8.0734588]
[1766751339589,3.3808079,123.89,123.85,22.81401002]
[1766751339966,8.07066291,123.91,123.85,22.81401002]
[1766751340175,3.3808079,123.89,123.85,22.81401002]
[1766751343895,3.3808079,123.88,123.85,14.74]
[1766751345910,3.3808079,123.88,123.84,8.07479067]
[1766751350606,8.07193642,123.89,123.84,8.07479067]
[1766751350785,11.45274432,123.89,123.84,8.07479067]
[1766751354086,8.07193642,123.89,123.84,8.07479067]
[1766751354384,11.45274432,123.89,123.84,8.07479067]
[1766751355500,11.45274432,123.89,123.84,11.45559857]
[1766751356510,11.45274432,123.89,123.84,8.07479067]
[1766751360716,3.3808079,123.89,123.84,8.07479067]
[1766751360892,3.3808079,123.9,123.85,3.3808079]
[1766751361206,0.72,123.9,123.86,0.68]
[1766751361395,0.72,123.89,123.86,0.68]
[1766751365319,0.72,123.89,123.86,8.75352234]
[1766751371911,0.72,123.9,123.87,0.68]
[1766751375731,2.16393756,123.9,123.87,0.68]
[1766751375952,0.66,123.89,123.87,0.68]
[1766751393146,2.16393756,123.9,123.86,8.07352234]
[1766751393548,10.23508566,123.9,123.86,8.07352234]
[1766751396657,2.16393756,123.89,123.85,61.5]
[1766751396858,2.16393756,123.89,123.84,69.57437376]
[1766751397452,2.16393756,123.88,123.84,69.57437376]
[1766751399155,8.07167648,123.89,123.84,71.73831132]
[1766751400858,8.07167648,123.89,123.84,10.23831132]
[1766751401043,16.90393756,123.9,123.85,2.16393756]
[1766751401359,14.74,123.9,123.85,2.16393756]
[1766751401661,16.90393756,123.9,123.85,2.16393756]
[1766751402234,16.90393756,123.9,123.86,8.07363151]
[1766751402565,2.16393756,123.9,123.86,8.07363151]
[1766751417154,2.16393756,123.89,123.85,69.57419793]
[1766751418493,2.16393756,123.89,123.85,8.07419793]
[1766751419902,10.23516168,123.9,123.85,8.07419793]
[1766751420275,8.07122412,123.9,123.85,8.07419793]
[1766751420475,10.23516168,123.9,123.85,8.07419793]
[1766751421179,0.69,123.89,123.86,0.67]
[1766751421688,2.16393756,123.89,123.86,0.67]
[1766751421881,0.69,123.88,123.86,0.67]
[1766751423606,2.85393756,123.89,123.86,0.67]
[1766751425613,0.69,123.89,123.86,0.67]
[1766751428411,0.69,123.89,123.86,8.0731992]
[1766751428612,0.69,123.89,123.87,0.67]
[1766751440918,4.0716821,123.89,123.87,0.67]
[1766751449929,0.69,123.89,123.87,0.67]
[1766751453147,11.45280407,123.9,123.86,8.0731992]
[1766751456628,8.07037365,123.91,123.86,8.0731992]
[1766751456828,8.83257922,123.9,123.86,8.0731992]
[1766751457152,3.3816821,123.9,123.86,8.0731992]
[1766751461654,8.07037365,123.91,123.86,8.0731992]
[1766751461952,8.83257383,123.9,123.86,8.0731992]
[1766751462155,3.3816821,123.9,123.86,8.0731992]
[1766751467357,11.45205575,123.91,123.86,8.0731992]
[1766751467560,5.44996695,123.9,123.86,8.0731992]
[1766751468764,5.44996695,123.9,123.86,11.4548813]